[Event "European Womens-ch 2025"]
[Site "Rhodes"]
[Date "2025.03.31"]
[Round "1.30"]
[White "Grapsa, Georgia"]
[Black "Brunello, Marina"]
[Result "0-1"]
[Annotator "RC"]
[ECO "E17"]
[WhiteElo "2065"]
[BlackElo "2330"]
[PlyCount "68"]
[EventDate "2025.03.29"]
[EventType "swiss"]
[EventCountry "GRE"]
[SourceTitle "playchess.com"]
[Source "ChessBase"]
[SourceQuality "1"]
[TimeControl "40/5400+30:1800+30"]

1. d4 {[%emt 0:00:04]} Nf6 {[%emt 0:00:08]} 2. c4 {[%emt 0:00:04]} e6 {[%emt 0:00:04]} 3. Nf3 {[%emt 0:00:05]} b6 {[%emt 0:00:21]} 4. g3 {[%emt 0:00:04]} Bb7 {[%emt 0:00:07]} 5. Bg2 {[%emt 0:00:04]} Be7 {[%emt 0:00:04]} 6. Nc3 {[%emt 0:00:41]} O-O {[%emt 0:00:10]} 7. d5 {[%emt 0:04:24]} Bb4 {[%emt 0:03:37]} 8. Bd2 {[%emt 0:03:41]} Bxc3 {[%emt 0:06:31]} 9. Bxc3 {[%emt 0:00:06]} exd5 {[%emt 0:00:05]} 10. Nh4 {[%emt 0:04:33]} Ne4 {[%emt 0:02:52]} 11. cxd5 {[%emt 0:07:56]} Nxc3 {[%emt 0:00:06]} 12. bxc3 {[%emt 0:00:06]} d6 {[%emt 0:00:25]} 13. O-O {[%emt 0:04:13]} Nd7 {[%emt 0:04:33]} 14. e4 {[%emt 0:05:00]} g6 {[%emt 0:02:54]} 15. Re1 {[%emt 0:04:26]} Re8 {[%emt 0:12:08]} 16. f4 {[%emt 0:09:23]} Qf6 {[%emt 0:07:16]} 17. Nf3 {[%emt 0:07:36]} Re7 {[%emt 0:05:35]} 18. Bh3 {[%emt 0:08:14]} Nc5 {[%emt 0:05:59]} 19. e5 {[%emt 0:03:13]} Qg7 {[%emt 0:00:45]} 20. Qd2 {[%emt 0:07:24]} Rae8 {[%emt 0:01:49]} 21. c4 {[%emt 0:09:02]} Qh6 {[%emt 0:02:05]} 22. Qg2 {[%emt 0:12:35]} b5 {[%emt 0:02:06]} 23. exd6 {[%emt 0:05:03]} cxd6 {[%emt 0:01:05]} 24. Rxe7 {[%emt 0:00:29]} Rxe7 {[%emt 0:00:06]} 25. Nd4 {[%emt 0:01:37]} bxc4 {[%emt 0:00:35]} 26. Nc6 {[%emt 0:02:09]} Re8 {[%emt 0:03:30]} 27. Bg4 {[%emt 0:00:15]} Qg7 {[%emt 0:01:03]} 28. Rb1 {[%emt 0:00:36]} c3 {[%emt 0:03:59]} 29. Qc2 {[%emt 0:01:04]} Ba6 {[%emt 0:01:30]} 30. Rc1 {[%emt 0:00:31]} h5 {[%emt 0:01:22]} 31. Bf3 {[%emt 0:00:18]} Nd3 {[%emt 0:01:00]} 32. Be2 {[%emt 0:00:05]} Rxe2 {[%emt 0:03:40]} 33. Qxe2 {[%emt 0:00:03]} Nxc1 {[%emt 0:00:04]} 34. Qxa6 {[%emt 0:00:17]} c2 {[%emt 0:00:29]} 0-1

[Event "European Womens-ch 2025"]
[Site "Rhodes"]
[Date "2025.03.31"]
[Round "1.31"]
[White "Toncheva, Nadya"]
[Black "Rida, Ruqayyah"]
[Result "1-0"]
[Annotator "RC"]
[ECO "E71"]
[WhiteElo "2329"]
[BlackElo "2065"]
[PlyCount "147"]
[EventDate "2025.03.29"]
[EventType "swiss"]
[EventCountry "GRE"]
[SourceTitle "playchess.com"]
[Source "ChessBase"]
[SourceQuality "1"]
[TimeControl "40/5400+30:1800+30"]

1. d4 {[%emt 1:31:00]} Nf6 {[%emt 0:00:09]} 2. c4 {[%emt 0:00:00]} g6 {[%emt 0:00:06]} 3. Nc3 {[%emt 0:00:00]} Bg7 {[%emt 0:00:07]} 4. e4 {[%emt 0:00:00]} d6 {[%emt 0:00:06]} 5. h3 {[%emt 0:00:00]} O-O {[%emt 0:01:09]} 6. Be3 {[%emt 0:00:00]} e5 {[%emt 0:01:33]} 7. d5 {[%emt 0:00:00]} Nbd7 {[%emt 0:00:45]} 8. g4 {[%emt 0:00:00]} Nc5 {[%emt 0:00:49]} 9. f3 {[%emt 0:00:00]} a5 {[%emt 0:00:51]} 10. Qd2 {[%emt 0:00:00]} Ne8 {[%emt 0:03:39]} 11. h4 {[%emt 0:00:00]} f5 {[%emt 0:04:38]} 12. g5 {[%emt 0:00:00]} f4 {[%emt 0:04:18]} 13. Bf2 {[%emt 0:00:00]} h6 {[%emt 0:02:52]} 14. gxh6 {[%emt 0:00:00]} Bxh6 {[%emt 0:00:21]} 15. Nh3 {[%emt 0:00:00]} Ng7 {[%emt 0:03:56]} 16. Rg1 {[%emt 0:00:00]} Bxh3 {[%emt 0:06:32]} 17. Bxh3 {[%emt 0:00:00]} Kh7 {[%emt 0:01:42]} 18. O-O-O {[%emt 0:00:00]} Nh5 {[%emt 0:04:05]} 19. Bxc5 {[%emt 0:00:00]} dxc5 {[%emt 0:03:59]} 20. d6 {[%emt 0:00:00]} Qxh4 {[%emt 0:02:04]} 21. Qg2 {[%emt 0:00:00]} Ng3 {[%emt 0:06:11]} 22. dxc7 {[%emt 0:00:00]} g5 {[%emt 0:01:53]} 23. c8=Q {[%emt 0:00:00]} Raxc8 {[%emt 0:00:12]} 24. Bxc8 {[%emt 0:00:00]} Rxc8 {[%emt 0:00:07]} 25. Rd7+ {[%emt 0:00:00]} Kh8 {[%emt 0:13:48]} 26. Qd2 {[%emt 0:00:00]} Rg8 {[%emt 0:04:17]} 27. Rg2 {[%emt 0:00:00]} Qh1+ {[%emt 0:09:28]} 28. Nd1 {[%emt 0:00:00]} Qf1 {[%emt 0:20:02]} 29. Rh2 {[%emt 0:00:00]} Qxc4+ {[%emt 0:00:41]} 30. Kb1 {[%emt 0:00:00]} Rg6 {[%emt 0:02:16]} 31. Re7 {[%emt 0:00:00]} Qd4 {[%emt 0:01:58]} 32. Qxd4 {[%emt 0:00:00]} exd4 {[%emt 0:00:21]} 33. Nf2 {[%emt 0:00:00]} Nf1 {[%emt 0:00:21]} 34. Rh3 {[%emt 0:00:00]} Ne3 {[%emt 0:00:53]} 35. Nd3 {[%emt 0:01:26]} Kg8 {[%emt 0:01:13]} 36. Ne5 {[%emt 0:03:34]} Rf6 {[%emt 0:00:34]} 37. Nd7 {[%emt 0:03:40]} Rg6 {[%emt 0:00:28]} 38. Nxc5 {[%emt 0:02:41]} g4 {[%emt 0:00:18]} 39. fxg4 {[%emt 0:00:24]} Rxg4 {[%emt 0:00:02]} 40. b4 {[%emt 0:00:00]} Bf8 {[%emt 0:00:00]} 41. Rd7 {[%emt 0:08:58]} Rg1+ {[%emt 0:05:41]} 42. Kb2 {[%emt 0:00:06]} Nc4+ {[%emt 0:00:36]} 43. Kc2 {[%emt 0:03:07]} Rg2+ {[%emt 0:00:56]} 44. Kd1 {[%emt 0:01:34]} b6 {[%emt 0:05:00]} 45. Nd3 {[%emt 0:06:00]} Ne3+ {[%emt 0:03:59]} 46. Ke1 {[%emt 0:03:51]} Rxa2 {[%emt 0:04:13]} 47. bxa5 {[%emt 0:01:00]} bxa5 {[%emt 0:03:48]} 48. e5 {[%emt 0:00:18]} Ra3 {[%emt 0:06:14]} 49. Ke2 {[%emt 0:01:12]} Ng4 {[%emt 0:01:40]} 50. e6 {[%emt 0:02:52]} Ne5 {[%emt 0:03:04]} 51. Rd8 {[%emt 0:03:35]} Nc6 {[%emt 0:01:15]} 52. Rc8 {[%emt 0:02:34]} Ne7 {[%emt 0:00:33]} 53. Ra8 {[%emt 0:04:43]} Nd5 {[%emt 0:00:39]} 54. Rh5 {[%emt 0:01:58]} f3+ {[%emt 0:00:25]} 55. Kf2 {[%emt 0:00:17]} Ne7 {[%emt 0:00:41]} 56. Ne5 {[%emt 0:00:50]} Kg7 {[%emt 0:00:16]} 57. Nd7 {[%emt 0:01:16]} Kg6 {[%emt 0:00:20]} 58. Rhxa5 {[%emt 0:00:43]} Rxa5 {[%emt 0:00:23]} 59. Rxa5 {[%emt 0:00:49]} Bh6 {[%emt 0:00:39]} 60. Kxf3 {[%emt 0:00:55]} Bd2 {[%emt 0:00:36]} 61. Rb5 {[%emt 0:00:22]} Bc3 {[%emt 0:00:42]} 62. Ke4 {[%emt 0:00:23]} Nc8 {[%emt 0:00:32]} 63. Rb1 {[%emt 0:00:42]} Nd6+ {[%emt 0:00:22]} 64. Kd5 {[%emt 0:00:08]} Ne8 {[%emt 0:00:19]} 65. Rg1+ {[%emt 0:00:09]} Kf5 {[%emt 0:00:08]} 66. Rf1+ {[%emt 0:00:06]} Kg6 {[%emt 0:00:35]} 67. Ne5+ {[%emt 0:01:16]} Kg7 {[%emt 0:00:33]} 68. Rf7+ {[%emt 0:00:42]} Kg8 {[%emt 0:00:07]} 69. e7 {[%emt 0:00:46]} Nc7+ {[%emt 0:01:26]} 70. Ke4 {[%emt 0:00:11]} d3 {[%emt 0:00:14]} 71. Rf8+ {[%emt 0:00:16]} Kg7 {[%emt 0:00:05]} 72. e8=Q {[%emt 0:00:27]} Nxe8 {[%emt 0:00:13]} 73. Rxe8 {[%emt 0:00:04]} d2 {[%emt 0:00:07]} 74. Rd8 {[%emt 0:00:04]} 1-0

[Event "European Womens-ch 2025"]
[Site "Rhodes"]
[Date "2025.03.31"]
[Round "1.32"]
[White "Huseynova, Lala"]
[Black "Zawadzka, Jolanta"]
[Result "0-1"]
[Annotator "RC"]
[ECO "B15"]
[WhiteElo "2065"]
[BlackElo "2326"]
[PlyCount "72"]
[EventDate "2025.03.29"]
[EventType "swiss"]
[EventCountry "GRE"]
[SourceTitle "playchess.com"]
[Source "ChessBase"]
[SourceQuality "1"]
[TimeControl "40/5400+30:1800+30"]

1. e4 {[%emt 0:00:03]} c6 {[%emt 0:00:06]} 2. d4 {[%emt 0:00:22]} d5 {[%emt 0:00:07]} 3. Nc3 {[%emt 0:00:14]} dxe4 {[%emt 0:00:06]} 4. Nxe4 {[%emt 0:00:05]} Nf6 {[%emt 0:00:06]} 5. Nxf6+ {[%emt 0:00:07]} exf6 {[%emt 0:00:03]} 6. Be3 {[%emt 0:00:09]} Bd6 {[%emt 0:00:18]} 7. Bd3 {[%emt 0:00:10]} Na6 {[%emt 0:00:11]} 8. a3 {[%emt 0:00:26]} Nc7 {[%emt 0:02:17]} 9. c4 {[%emt 0:00:52]} O-O {[%emt 0:10:06]} 10. Ne2 {[%emt 0:02:00]} Re8 {[%emt 0:00:47]} 11. O-O {[%emt 0:03:16]} Bd7 {[%emt 0:08:54]} 12. Ng3 {[%emt 0:06:26]} g6 {[%emt 0:02:43]} 13. Qd2 {[%emt 0:06:06]} Ne6 {[%emt 0:02:48]} 14. Ne4 {[%emt 0:02:04]} Bf8 {[%emt 0:06:55]} 15. d5 {[%emt 0:04:43]} cxd5 {[%emt 0:07:10]} 16. cxd5 {[%emt 0:00:04]} Ng7 {[%emt 0:00:26]} 17. Bd4 {[%emt 0:07:50]} Nh5 {[%emt 0:00:22]} 18. Ng3 {[%emt 0:05:25]} Nxg3 {[%emt 0:14:02]} 19. fxg3 {[%emt 0:01:12]} f5 {[%emt 0:00:08]} 20. Qf2 {[%emt 0:16:29]} Bd6 {[%emt 0:03:02]} 21. g4 {[%emt 0:04:15]} f4 {[%emt 0:00:15]} 22. h3 {[%emt 0:05:48]} Qg5 {[%emt 0:02:11]} 23. Qf3 {[%emt 0:01:15]} Re7 {[%emt 0:00:47]} 24. Rae1 {[%emt 0:09:58]} b6 {[%emt 0:03:10]} 25. Bc4 {[%emt 0:04:39]} Rc8 {[%emt 0:05:54]} 26. Ba6 {[%emt 0:08:24]} Rce8 {[%emt 0:03:09]} 27. Rxe7 {[%emt 0:02:20]} Qxe7 {[%emt 0:00:33]} 28. Qc3 {[%emt 0:00:49]} Qe4 {[%emt 0:02:47]} 29. Bb7 {[%emt 0:02:31]} Bb5 {[%emt 0:01:40]} 30. Rc1 {[%emt 0:02:57]} f3 {[%emt 0:02:47]} 31. Bh8 {[%emt 0:01:38]} Bc5+ {[%emt 0:04:34]} 32. Kh2 {[%emt 0:00:05]} Qf4+ {[%emt 0:03:31]} 33. g3 {[%emt 0:00:01]} Re2+ {[%emt 0:00:07]} 34. Kh1 {[%emt 0:00:05]} Qxc1+ {[%emt 0:01:10]} 35. Qxc1 {[%emt 0:00:01]} f2 {[%emt 0:00:31]} 36. Bc3 {[%emt 0:00:50]} Rc2 {[%emt 0:00:16]} 0-1

[Event "European Womens-ch 2025"]
[Site "Rhodes"]
[Date "2025.03.31"]
[Round "1.33"]
[White "Antolak, Julia"]
[Black "Acarbay, Algi"]
[Result "1-0"]
[Annotator "RC"]
[ECO "B11"]
[WhiteElo "2314"]
[BlackElo "2052"]
[PlyCount "79"]
[EventDate "2025.03.29"]
[EventType "swiss"]
[EventCountry "GRE"]
[SourceTitle "playchess.com"]
[Source "ChessBase"]
[SourceQuality "1"]
[TimeControl "40/5400+30:1800+30"]

1. e4 {[%emt 0:00:04]} c6 {[%emt 0:00:21]} 2. Nc3 {[%emt 0:01:36]} d5 {[%emt 0:00:16]} 3. Qf3 {[%emt 0:02:49]} d4 {[%emt 0:01:00]} 4. Bc4 {[%emt 0:00:31]} Nf6 {[%emt 0:00:20]} 5. e5 {[%emt 0:03:07]} dxc3 {[%emt 0:00:24]} 6. exf6 {[%emt 0:00:13]} exf6 {[%emt 0:00:22]} 7. dxc3 {[%emt 0:01:29]} Nd7 {[%emt 0:00:23]} 8. Bf4 {[%emt 0:04:12]} Qe7+ {[%emt 0:01:05]} 9. Be2 {[%emt 0:03:16]} Qe6 {[%emt 0:10:25]} 10. Qg3 {[%emt 0:06:01]} Nc5 {[%emt 0:15:31]} 11. Be3 {[%emt 0:08:40]} Ne4 {[%emt 0:03:02]} 12. Qh4 {[%emt 0:00:41]} Bc5 {[%emt 0:02:47]} 13. Bxc5 {[%emt 0:08:08]} Nxc5 {[%emt 0:00:08]} 14. Qd4 {[%emt 0:00:34]} Qe7 {[%emt 0:07:13]} 15. O-O-O {[%emt 0:03:09]} O-O {[%emt 0:01:41]} 16. Nf3 {[%emt 0:05:14]} Bf5 {[%emt 0:26:53]} 17. Rhe1 {[%emt 0:03:28]} Rad8 {[%emt 0:00:43]} 18. Qf4 {[%emt 0:03:56]} Qe4 {[%emt 0:01:40]} 19. Qxe4 {[%emt 0:00:40]} Bxe4 {[%emt 0:00:57]} 20. g3 {[%emt 0:04:46]} Rfe8 {[%emt 0:09:46]} 21. Nd4 {[%emt 0:02:56]} Kf8 {[%emt 0:01:25]} 22. Rd2 {[%emt 0:06:05]} g5 {[%emt 0:04:57]} 23. Red1 {[%emt 0:02:54]} Ke7 {[%emt 0:02:03]} 24. Bg4 {[%emt 0:04:40]} Ne6 {[%emt 0:06:43]} 25. Re1 {[%emt 0:13:32]} Bd5 {[%emt 0:01:13]} 26. c4 {[%emt 0:05:03]} Bxc4 {[%emt 0:00:38]} 27. Nf5+ {[%emt 0:00:18]} Kf8 {[%emt 0:00:09]} 28. Nd6 {[%emt 0:00:12]} Bd5 {[%emt 0:00:55]} 29. Nxe8 {[%emt 0:00:09]} Rxe8 {[%emt 0:01:01]} 30. b3 {[%emt 0:00:41]} b5 {[%emt 0:00:10]} 31. Re3 {[%emt 0:00:20]} Nc5 {[%emt 0:00:57]} 32. Rxe8+ {[%emt 0:00:56]} Kxe8 {[%emt 0:00:01]} 33. Bf5 {[%emt 0:00:15]} h6 {[%emt 0:00:18]} 34. Re2+ {[%emt 0:01:50]} Kd8 {[%emt 0:00:45]} 35. c4 {[%emt 0:00:09]} bxc4 {[%emt 0:00:45]} 36. bxc4 {[%emt 0:00:04]} Be6 {[%emt 0:00:45]} 37. Bxe6 {[%emt 0:00:25]} fxe6 {[%emt 0:00:08]} 38. Re3 {[%emt 0:00:23]} e5 {[%emt 0:00:53]} 39. Ra3 {[%emt 0:01:32]} e4 {[%emt 0:00:43]} 40. Rxa7 {[%emt 0:00:00]} 1-0

[Event "European Womens-ch 2025"]
[Site "Rhodes"]
[Date "2025.03.31"]
[Round "1.34"]
[White "Bochnickova, Andrea"]
[Black "Zhukova, Natalia"]
[Result "1-0"]
[Annotator "RC"]
[ECO "D52"]
[WhiteElo "2051"]
[BlackElo "2306"]
[PlyCount "141"]
[EventDate "2025.03.29"]
[EventType "swiss"]
[EventCountry "GRE"]
[SourceTitle "playchess.com"]
[Source "ChessBase"]
[SourceQuality "1"]
[TimeControl "40/5400+30:1800+30"]

1. d4 {[%emt 0:00:11]} d5 {[%emt 0:01:59]} 2. c4 {[%emt 0:00:06]} e6 {[%emt 0:00:23]} 3. Nc3 {[%emt 0:00:13]} c6 {[%emt 0:04:32]} 4. Nf3 {[%emt 0:03:25]} Nf6 {[%emt 0:01:11]} 5. Bg5 {[%emt 0:01:22]} Nbd7 {[%emt 0:01:13]} 6. e3 {[%emt 0:00:46]} Qa5 {[%emt 0:00:23]} 7. Qb3 {[%emt 0:05:34]} Ne4 {[%emt 0:03:29]} 8. h4 {[%emt 0:04:11]} h6 {[%emt 0:19:59]} 9. Bf4 {[%emt 0:00:20]} Ndf6 {[%emt 0:00:17]} 10. Bd3 {[%emt 0:02:55]} dxc4 {[%emt 0:17:21]} 11. Qxc4 {[%emt 0:08:56]} Nxc3 {[%emt 0:01:13]} 12. bxc3 {[%emt 0:00:20]} Nd5 {[%emt 0:00:08]} 13. Rc1 {[%emt 0:01:13]} Nxf4 {[%emt 0:21:29]} 14. exf4 {[%emt 0:00:35]} Bd6 {[%emt 0:00:07]} 15. Ne5 {[%emt 0:02:26]} Qd5 {[%emt 0:00:22]} 16. O-O {[%emt 0:03:02]} Qxc4 {[%emt 0:00:07]} 17. Bxc4 {[%emt 0:00:43]} O-O {[%emt 0:04:21]} 18. g3 {[%emt 0:07:39]} Rd8 {[%emt 0:06:54]} 19. Rb1 {[%emt 0:02:42]} Rb8 {[%emt 0:04:53]} 20. Rfd1 {[%emt 0:05:59]} Bd7 {[%emt 0:00:26]} 21. Be2 {[%emt 0:03:58]} Be8 {[%emt 0:01:29]} 22. h5 {[%emt 0:01:55]} Kf8 {[%emt 0:01:02]} 23. Bf3 {[%emt 0:02:22]} Bc7 {[%emt 0:04:06]} 24. c4 {[%emt 0:05:03]} f6 {[%emt 0:03:59]} 25. Ng6+ {[%emt 0:01:05]} Bxg6 {[%emt 0:00:02]} 26. hxg6 {[%emt 0:00:07]} Bb6 {[%emt 0:00:58]} 27. c5 {[%emt 0:04:29]} Bc7 {[%emt 0:00:33]} 28. Rb3 {[%emt 0:01:25]} b6 {[%emt 0:00:12]} 29. Rbd3 {[%emt 0:03:51]} bxc5 {[%emt 0:01:17]} 30. dxc5 {[%emt 0:00:14]} Rxd3 {[%emt 0:00:28]} 31. Rxd3 {[%emt 0:00:06]} Rd8 {[%emt 0:00:35]} 32. Ra3 {[%emt 0:02:37]} a5 {[%emt 0:00:02]} 33. Bxc6 {[%emt 0:00:18]} Rd1+ {[%emt 0:00:16]} 34. Kg2 {[%emt 0:00:42]} Rc1 {[%emt 0:00:14]} 35. Bd7 {[%emt 0:02:28]} Ke7 {[%emt 0:01:17]} 36. c6 {[%emt 0:01:14]} Bb6 {[%emt 0:00:38]} 37. Rb3 {[%emt 0:01:10]} Bd4 {[%emt 0:00:01]} 38. Rb7 {[%emt 0:02:39]} f5 {[%emt 0:00:02]} 39. Bc8+ {[%emt 0:01:43]} Kf6 {[%emt 0:01:02]} 40. Bd7 {[%emt 0:00:00]} Ke7 {[%emt 0:00:00]} 41. Rb8 {[%emt 0:10:36]} Rc2 {[%emt 0:10:42]} 42. Re8+ {[%emt 0:03:06]} Kd6 {[%emt 0:00:16]} 43. Rxe6+ {[%emt 0:01:08]} Kc7 {[%emt 0:00:05]} 44. Re7 {[%emt 0:02:52]} Kd6 {[%emt 0:03:56]} 45. Rf7 {[%emt 0:01:44]} Rxf2+ {[%emt 0:01:58]} 46. Kh3 {[%emt 0:01:12]} Rc2 {[%emt 0:01:09]} 47. Be8 {[%emt 0:04:06]} Ba1 {[%emt 0:11:16]} 48. Rd7+ {[%emt 0:05:36]} Kc5 {[%emt 0:00:15]} 49. Ra7 {[%emt 0:04:10]} Kb6 {[%emt 0:00:37]} 50. Rb7+ {[%emt 0:00:10]} Ka6 {[%emt 0:03:16]} 51. a4 {[%emt 0:01:36]} Bd4 {[%emt 0:00:17]} 52. Rf7 {[%emt 0:03:29]} Rc5 {[%emt 0:00:30]} 53. Rd7 {[%emt 0:03:22]} Bc3 {[%emt 0:01:04]} 54. Rb7 {[%emt 0:01:18]} Bd4 {[%emt 0:00:24]} 55. Bd7 {[%emt 0:00:31]} Bf6 {[%emt 0:01:49]} 56. Rb3 {[%emt 0:00:34]} Ba1 {[%emt 0:01:23]} 57. Kg2 {[%emt 0:04:04]} Bf6 {[%emt 0:00:07]} 58. Kf2 {[%emt 0:00:47]} Rc1 {[%emt 0:00:55]} 59. Ke3 {[%emt 0:01:08]} Rc5 {[%emt 0:00:16]} 60. Kd3 {[%emt 0:02:26]} Ka7 {[%emt 0:00:03]} 61. Rb5 {[%emt 0:00:32]} Rxb5 {[%emt 0:00:18]} 62. axb5 {[%emt 0:00:05]} Kb6 {[%emt 0:00:22]} 63. Bxf5 {[%emt 0:00:33]} a4 {[%emt 0:00:41]} 64. Be6 {[%emt 0:01:09]} a3 {[%emt 0:00:13]} 65. Bb3 {[%emt 0:00:36]} Bd8 {[%emt 0:01:32]} 66. Kc4 {[%emt 0:00:20]} Bc7 {[%emt 0:00:02]} 67. Kd5 {[%emt 0:01:52]} Kxb5 {[%emt 0:00:06]} 68. Ke6 {[%emt 0:00:05]} h5 {[%emt 0:01:25]} 69. Kf7 {[%emt 0:00:52]} Kxc6 {[%emt 0:00:30]} 70. Kxg7 {[%emt 0:00:10]} Kc5 {[%emt 0:00:32]} 71. Kf7 {[%emt 0:00:40]} 1-0

[Event "European Womens-ch 2025"]
[Site "Rhodes"]
[Date "2025.03.31"]
[Round "1.35"]
[White "Unuk, Laura"]
[Black "Shuqja, Klean"]
[Result "1-0"]
[Annotator "RC"]
[ECO "E12"]
[WhiteElo "2301"]
[BlackElo "2049"]
[PlyCount "127"]
[EventDate "2025.03.29"]
[EventType "swiss"]
[EventCountry "GRE"]
[SourceTitle "playchess.com"]
[Source "ChessBase"]
[SourceQuality "1"]
[TimeControl "40/5400+30:1800+30"]

1. d4 {[%emt 0:00:06]} Nf6 {[%emt 0:00:13]} 2. Nf3 {[%emt 0:00:12]} e6 {[%emt 0:00:16]} 3. g3 {[%emt 0:00:26]} b6 {[%emt 0:00:36]} 4. Bg2 {[%emt 0:00:35]} Bb7 {[%emt 0:00:03]} 5. O-O {[%emt 0:00:56]} Be7 {[%emt 0:00:05]} 6. c4 {[%emt 0:01:33]} O-O {[%emt 0:02:16]} 7. a3 {[%emt 0:06:02]} d5 {[%emt 0:04:33]} 8. cxd5 {[%emt 0:01:43]} exd5 {[%emt 0:00:31]} 9. Bf4 {[%emt 0:03:27]} Nbd7 {[%emt 0:02:41]} 10. Nc3 {[%emt 0:02:57]} c6 {[%emt 0:12:59]} 11. Qc2 {[%emt 0:07:34]} Nh5 {[%emt 0:04:19]} 12. Rad1 {[%emt 0:05:46]} Re8 {[%emt 0:15:18]} 13. Bc1 {[%emt 0:01:27]} Nhf6 {[%emt 0:03:43]} 14. Rfe1 {[%emt 0:01:42]} Qc7 {[%emt 0:12:44]} 15. Nh4 {[%emt 0:07:41]} Rac8 {[%emt 0:10:35]} 16. Nf5 {[%emt 0:01:07]} Nf8 {[%emt 0:02:20]} 17. e4 {[%emt 0:11:57]} Nxe4 {[%emt 0:01:18]} 18. Nxe4 {[%emt 0:01:14]} dxe4 {[%emt 0:00:04]} 19. Qxe4 {[%emt 0:08:56]} Bf6 {[%emt 0:06:39]} 20. Qg4 {[%emt 0:01:39]} Rxe1+ {[%emt 0:01:39]} 21. Rxe1 {[%emt 0:00:05]} Ng6 {[%emt 0:07:39]} 22. h4 {[%emt 0:01:20]} Rd8 {[%emt 0:03:56]} 23. h5 {[%emt 0:01:42]} Bc8 {[%emt 0:01:38]} 24. Bg5 {[%emt 0:29:48]} Bxg5 {[%emt 0:01:24]} 25. Qxg5 {[%emt 0:00:05]} Bxf5 {[%emt 0:00:40]} 26. Qxf5 {[%emt 0:00:06]} Nf8 {[%emt 0:01:24]} 27. h6 {[%emt 0:01:11]} gxh6 {[%emt 0:02:23]} 28. Rc1 {[%emt 0:00:18]} Rd6 {[%emt 0:01:19]} 29. d5 {[%emt 0:00:32]} c5 {[%emt 0:00:13]} 30. Re1 {[%emt 0:00:11]} Qd7 {[%emt 0:00:29]} 31. Qf4 {[%emt 0:01:57]} Kg7 {[%emt 0:01:24]} 32. Qe5+ {[%emt 0:01:13]} f6 {[%emt 0:00:36]} 33. Qe7+ {[%emt 0:00:59]} Qxe7 {[%emt 0:00:31]} 34. Rxe7+ {[%emt 0:00:04]} Kg6 {[%emt 0:00:09]} 35. Rxa7 {[%emt 0:00:13]} Nd7 {[%emt 0:00:20]} 36. a4 {[%emt 0:01:12]} Ne5 {[%emt 0:00:41]} 37. b3 {[%emt 0:00:28]} f5 {[%emt 0:00:49]} 38. Re7 {[%emt 0:00:25]} Nd3 {[%emt 0:00:23]} 39. f4 {[%emt 0:00:39]} Nb4 {[%emt 0:00:20]} 40. Re5 {[%emt 0:00:00]} Nd3 {[%emt 0:00:00]} 41. Re3 {[%emt 0:14:46]} Nb4 {[%emt 0:01:13]} 42. Re2 {[%emt 0:00:10]} Kf6 {[%emt 0:04:43]} 43. Rd2 {[%emt 0:02:01]} Ke7 {[%emt 0:04:43]} 44. Kf2 {[%emt 0:00:26]} Kf6 {[%emt 0:19:52]} 45. Bf3 {[%emt 0:00:42]} Na6 {[%emt 0:01:43]} 46. Be2 {[%emt 0:10:33]} Nc7 {[%emt 0:00:17]} 47. Bc4 {[%emt 0:00:03]} Kf7 {[%emt 0:01:07]} 48. Re2 {[%emt 0:00:33]} Kf6 {[%emt 0:00:39]} 49. Re5 {[%emt 0:00:19]} Rd7 {[%emt 0:01:00]} 50. Kg2 {[%emt 0:00:39]} Rd6 {[%emt 0:00:26]} 51. Kh3 {[%emt 0:00:05]} Rd7 {[%emt 0:00:35]} 52. Kh4 {[%emt 0:00:20]} Kg6 {[%emt 0:00:29]} 53. Bd3 {[%emt 0:03:09]} Rxd5 {[%emt 0:00:16]} 54. Bxf5+ {[%emt 0:00:07]} Kg7 {[%emt 0:00:44]} 55. Rxd5 {[%emt 0:02:33]} Nxd5 {[%emt 0:00:01]} 56. Bd3 {[%emt 0:00:40]} Nf6 {[%emt 0:00:43]} 57. g4 {[%emt 0:00:13]} Nd5 {[%emt 0:00:23]} 58. Kg3 {[%emt 0:00:13]} Nf6 {[%emt 0:00:30]} 59. Kf3 {[%emt 0:00:55]} h5 {[%emt 0:00:19]} 60. g5 {[%emt 0:00:05]} Nd5 {[%emt 0:01:05]} 61. f5 {[%emt 0:00:27]} h6 {[%emt 0:00:29]} 62. Bc4 {[%emt 0:02:30]} Nc3 {[%emt 0:00:25]} 63. f6+ {[%emt 0:00:05]} Kg6 {[%emt 0:00:35]} 64. f7 {[%emt 0:00:06]} 1-0